[Event "44th Chess Olympiad Women 2022"]
[Site "Chennai"]
[Date "2022.08.08"]
[Round "10.21"]
[White "Georgescu, Lena"]
[Black "Rogule, Laura"]
[Result "0-1"]
[WhiteElo "2279"]
[BlackElo "2292"]
[Annotator "RC"]
[PlyCount "116"]
[EventDate "2022.??.??"]
[TimeControl "60"]

1. e4 {[%emt 0:00:04]} c5 {[%emt 0:00:08]} 2. Nf3 {[%emt 0:00:04]} Nc6 {
[%emt 0:00:11]} 3. Bb5 {[%emt 0:00:17]} g6 {[%emt 0:00:14]} 4. O-O {[%emt 0:00:
00]} Bg7 {[%emt 0:00:11]} 5. c3 {[%emt 0:00:13]} Nf6 {[%emt 0:00:36]} 6. Re1 {
[%emt 0:00:09]} O-O {[%emt 0:00:26]} 7. d4 {[%emt 0:00:11]} d5 {[%emt 0:01:41]}
8. e5 {[%emt 0:00:06]} Ne4 {[%emt 0:00:27]} 9. Bxc6 {[%emt 0:00:10]} bxc6 {
[%emt 0:00:06]} 10. Be3 {[%emt 0:00:06]} Qb6 {[%emt 0:05:29]} 11. Qc1 {[%emt 0:
00:00]} c4 {[%emt 0:08:29]} 12. Nbd2 {[%emt 0:02:51]} Nxd2 {[%emt 0:02:23]} 13.
Nxd2 {[%emt 0:02:28]} Bf5 {[%emt 0:01:22]} 14. b3 {[%emt 0:08:18]} Bd3 {
[%emt 0:03:43]} 15. Qd1 {[%emt 0:17:55]} Qa5 {[%emt 0:16:52]} 16. Rc1 {[%emt 0:
00:00]} Qxa2 {[%emt 0:18:46]} 17. bxc4 {[%emt 0:00:11]} dxc4 {[%emt 0:00:45]}
18. h4 {[%emt 0:00:07]} a5 {[%emt 0:05:10]} 19. h5 {[%emt 0:02:20]} a4 {
[%emt 0:10:03]} 20. h6 {[%emt 0:00:05]} Bh8 {[%emt 0:00:19]} 21. Ra1 {[%emt 0:
00:00]} Qb2 {[%emt 0:01:20]} 22. Rxa4 {[%emt 0:01:13]} Qxc3 {[%emt 0:01:24]}
23. Qa1 {[%emt 0:06:19]} Qxa1 {[%emt 0:00:20]} 24. Rexa1 {[%emt 0:00:09]} Rxa4
{[%emt 0:01:03]} 25. Rxa4 {[%emt 0:00:02]} c3 {[%emt 0:09:35]} 26. Nf3 {
[%emt 0:00:06]} f6 {[%emt 0:02:32]} 27. Ra3 {[%emt 0:02:19]} Be4 {[%emt 0:00:
00]} 28. exf6 {[%emt 0:04:20]} exf6 {[%emt 0:04:06]} 29. Rxc3 {[%emt 0:00:13]}
g5 {[%emt 0:00:43]} 30. Ne1 {[%emt 0:02:27]} Kf7 {[%emt 0:00:22]} 31. Nd3 {
[%emt 0:00:38]} Rb8 {[%emt 0:00:58]} 32. f3 {[%emt 0:00:36]} Bd5 {[%emt 0:00:
00]} 33. Nf2 {[%emt 0:01:36]} f5 {[%emt 0:00:38]} 34. Nd3 {[%emt 0:00:34]} f4 {
[%emt 0:00:24]} 35. Bf2 {[%emt 0:00:21]} Rb1+ {[%emt 0:00:51]} 36. Kh2 {
[%emt 0:00:19]} Kg6 {[%emt 0:00:25]} 37. Ne5+ {[%emt 0:00:35]} Bxe5 {[%emt 0:
00:00]} 38. dxe5 {[%emt 0:00:05]} Rb2 {[%emt 0:00:25]} 39. Kg1 {[%emt 0:01:17]}
Re2 {[%emt 0:00:35]} 40. Rc1 {[%emt 0:01:07]} Kxh6 {[%emt 0:00:54]} 41. Re1 {
[%emt 0:02:10]} Rxe1+ {[%emt 0:03:37]} 42. Bxe1 {[%emt 0:00:06]} Kg6 {[%emt 0:
00:00]} 43. Bb4 {[%emt 0:05:44]} Kf5 {[%emt 0:05:26]} 44. Bd6 {[%emt 0:00:11]}
h5 {[%emt 0:02:23]} 45. Kf2 {[%emt 0:01:05]} Be6 {[%emt 0:10:05]} 46. Ke2 {
[%emt 0:16:43]} Bc8 {[%emt 0:03:24]} 47. Kf2 {[%emt 0:01:56]} Ke6 {[%emt 0:00:
00]} 48. Ke2 {[%emt 0:02:55]} Kd5 {[%emt 0:01:50]} 49. Be7 {[%emt 0:01:13]} g4
{[%emt 0:00:10]} 50. Bd6 {[%emt 0:01:50]} Be6 {[%emt 0:01:39]} 51. Kf2 {
[%emt 0:00:37]} Kd4 {[%emt 0:00:43]} 52. g3 {[%emt 0:00:40]} fxg3+ {[%emt 0:00:
00]} 53. Kxg3 {[%emt 0:00:11]} gxf3 {[%emt 0:01:04]} 54. Kxf3 {[%emt 0:00:09]}
h4 {[%emt 0:00:36]} 55. Kf4 {[%emt 0:01:23]} c5 {[%emt 0:00:42]} 56. Kg5 {
[%emt 0:00:28]} h3 {[%emt 0:00:13]} 57. Kf6 {[%emt 0:00:09]} Kd5 {[%emt 0:00:
00]} 58. Bxc5 {[%emt 0:00:24]} h2 {[%emt 0:00:13]} 0-1

[Event "44th Chess Olympiad Women 2022"]
[Site "Chennai"]
[Date "2022.08.08"]
[Round "10.21"]
[White "Heinatz, Gundula"]
[Black "Ter-Avetisjana, Agnesa Stepania"]
[Result "0-1"]
[WhiteElo "2196"]
[BlackElo "1962"]
[Annotator "RC"]
[PlyCount "116"]
[EventDate "2022.??.??"]
[TimeControl "60"]

1. d4 {[%emt 0:00:04]} d5 {[%emt 0:00:05]} 2. Bf4 {[%emt 0:00:18]} Nf6 {
[%emt 0:00:06]} 3. Nd2 {[%emt 0:00:40]} e6 {[%emt 0:00:24]} 4. Ngf3 {[%emt 0:
00:00]} Bd6 {[%emt 0:00:53]} 5. Bg5 {[%emt 0:01:28]} c5 {[%emt 0:00:55]} 6. e4
{[%emt 0:01:30]} Be7 {[%emt 0:05:30]} 7. Bxf6 {[%emt 0:16:03]} Bxf6 {[%emt 0:
00:00]} 8. c3 {[%emt 0:00:18]} cxd4 {[%emt 0:06:16]} 9. e5 {[%emt 0:06:36]}
dxc3 {[%emt 0:02:25]} 10. bxc3 {[%emt 0:00:03]} Be7 {[%emt 0:00:25]} 11. Bd3 {
[%emt 0:00:17]} Nc6 {[%emt 0:01:19]} 12. O-O {[%emt 0:00:08]} O-O {[%emt 0:00:
00]} 13. Re1 {[%emt 0:05:20]} Bd7 {[%emt 0:05:21]} 14. Rb1 {[%emt 0:02:03]} Qc7
{[%emt 0:02:59]} 15. Nb3 {[%emt 0:03:10]} a6 {[%emt 0:04:19]} 16. Qc2 {[%emt 0:
00:00]} g6 {[%emt 0:01:27]} 17. h4 {[%emt 0:00:14]} Rac8 {[%emt 0:04:26]} 18.
Qd2 {[%emt 0:01:28]} Nd8 {[%emt 0:07:48]} 19. Rbc1 {[%emt 0:01:53]} f5 {
[%emt 0:11:23]} 20. exf6 {[%emt 0:01:45]} Bxf6 {[%emt 0:01:11]} 21. c4 {
[%emt 0:02:55]} Bc6 {[%emt 0:10:23]} 22. cxd5 {[%emt 0:05:09]} exd5 {[%emt 0:
00:00]} 23. h5 {[%emt 0:00:21]} Qg7 {[%emt 0:07:12]} 24. hxg6 {[%emt 0:02:54]}
hxg6 {[%emt 0:01:04]} 25. Bb1 {[%emt 0:01:17]} Nf7 {[%emt 0:06:10]} 26. Nbd4 {
[%emt 0:04:28]} Ne5 {[%emt 0:08:47]} 27. Re2 {[%emt 0:08:42]} Nxf3+ {[%emt 0:
00:00]} 28. Nxf3 {[%emt 0:00:06]} Rce8 {[%emt 0:02:52]} 29. Rd1 {[%emt 0:07:16]
} g5 {[%emt 0:03:08]} 30. Rxe8 {[%emt 0:08:00]} Rxe8 {[%emt 0:00:01]} 31. Qb4 {
[%emt 0:03:41]} g4 {[%emt 0:01:45]} 32. Nh2 {[%emt 0:03:43]} g3 {[%emt 0:00:41]
} 33. fxg3 {[%emt 0:01:52]} Qxg3 {[%emt 0:02:33]} 34. Qg4+ {[%emt 0:04:47]}
Qxg4 {[%emt 0:00:06]} 35. Nxg4 {[%emt 0:00:03]} Bg5 {[%emt 0:00:49]} 36. Bd3 {
[%emt 0:02:46]} Kg7 {[%emt 0:00:44]} 37. Rf1 {[%emt 0:00:36]} Bd7 {[%emt 0:00:
00]} 38. Bf5 {[%emt 0:01:33]} Bb5 {[%emt 0:00:21]} 39. Rd1 {[%emt 0:00:58]} Bc4
{[%emt 0:00:23]} 40. a3 {[%emt 0:01:03]} b5 {[%emt 0:00:58]} 41. g3 {[%emt 0:
00:00]} Rf8 {[%emt 0:01:45]} 42. Be6 {[%emt 0:03:14]} Be7 {[%emt 0:05:07]} 43.
Kg2 {[%emt 0:01:54]} Bxa3 {[%emt 0:06:34]} 44. Ne3 {[%emt 0:03:30]} Be2 {
[%emt 0:04:00]} 45. Ra1 {[%emt 0:04:13]} Bf3+ {[%emt 0:00:35]} 46. Kh2 {
[%emt 0:02:00]} Rh8+ {[%emt 0:00:35]} 47. Bh3 {[%emt 0:00:03]} b4 {[%emt 0:00:
00]} 48. Rf1 {[%emt 0:00:36]} Be4 {[%emt 0:01:13]} 49. Nf5+ {[%emt 0:07:00]}
Kf6 {[%emt 0:08:07]} 50. Nd6+ {[%emt 0:01:11]} Ke7 {[%emt 0:02:28]} 51. Nc8+ {
[%emt 0:01:54]} Kd8 {[%emt 0:00:48]} 52. Nb6 {[%emt 0:02:42]} Kc7 {[%emt 0:00:
00]} 53. Na4 {[%emt 0:00:13]} Kc6 {[%emt 0:00:38]} 54. Rf6+ {[%emt 0:00:22]}
Kb5 {[%emt 0:00:06]} 55. Nb6 {[%emt 0:00:43]} Bb2 {[%emt 0:00:16]} 56. Rd6 {
[%emt 0:01:07]} Be5 {[%emt 0:00:24]} 57. Re6 {[%emt 0:00:33]} Bd4 {[%emt 0:00:
00]} 58. Nd7 {[%emt 0:00:45]} Rxh3+ {[%emt 0:00:05]} 0-1

[Event "44th Chess Olympiad Women 2022"]
[Site "Chennai"]
[Date "2022.08.08"]
[Round "10.21"]
[White "Maklakova, Nellija"]
[Black "Stoeri, Laura"]
[Result "1/2-1/2"]
[WhiteElo "1819"]
[BlackElo "2084"]
[Annotator "NA RC"]
[PlyCount "78"]
[EventDate "2022.??.??"]
[TimeControl "60"]

1. d4 {[%emt 0:00:18]} Nf6 {[%emt 0:00:05]} 2. Nf3 {[%emt 0:00:06]} e6 {
[%emt 0:00:12]} 3. e3 {[%emt 0:00:15]} b6 {[%emt 0:00:36]} 4. Be2 {[%emt 0:00:
00]} Bb7 {[%emt 0:00:05]} 5. c4 {[%emt 0:00:30]} d5 {[%emt 0:00:26]} 6. O-O {
[%emt 0:00:20]} Bd6 {[%emt 0:00:51]} 7. cxd5 {[%emt 0:05:18]} exd5 {[%emt 0:00:
00]} 8. Nc3 {[%emt 0:00:35]} O-O {[%emt 0:07:09]} 9. Nb5 {[%emt 0:01:01]} Be7 {
[%emt 0:11:20]} 10. Ne5 {[%emt 0:02:54]} a6 {[%emt 0:05:01]} 11. Nc3 {[%emt 0:
00:00]} Nbd7 {[%emt 0:01:42]} 12. f4 {[%emt 0:01:18]} b5 {[%emt 0:12:42]} 13.
Bf3 {[%emt 0:02:47]} Rc8 {[%emt 0:04:33]} 14. g4 {[%emt 0:07:10]} Ne4 {[%emt 0:
00:00]} 15. Bd2 {[%emt 0:11:52]} c5 {[%emt 0:04:02]} 16. Ne2 {[%emt 0:04:50]}
cxd4 {[%emt 0:13:55]} 17. exd4 {[%emt 0:04:15]} Nxe5 {[%emt 0:00:24]} 18. fxe5
{[%emt 0:07:55]} f6 {[%emt 0:01:13]} 19. Bf4 {[%emt 0:02:21]} fxe5 {[%emt 0:00:
00]} 20. Bxe5 {[%emt 0:02:02]} Bg5 {[%emt 0:00:18]} 21. Bxe4 {[%emt 0:02:08]}
dxe4 {[%emt 0:02:55]} 22. Qb3+ {[%emt 0:07:47]} Bd5 {[%emt 0:01:58]} 23. Rxf8+
{[%emt 0:00:19]} Kxf8 {[%emt 0:00:03]} 24. Rf1+ {[%emt 0:00:13]} Kg8 {[%emt 0:
00:00]} 25. Qa3 {[%emt 0:02:02]} Qd7 {[%emt 0:04:45]} 26. Rf5 {[%emt 0:09:00]}
h6 {[%emt 0:00:24]} 27. Nf4 {[%emt 0:11:04]} Rc1+ {[%emt 0:15:47]} 28. Kf2 {
[%emt 0:06:11]} e3+ {[%emt 0:01:19]} 29. Kxe3 {[%emt 0:00:41]} Re1+ {[%emt 0:
00:00]} 30. Kd2 {[%emt 0:00:55]} Re4 {[%emt 0:01:12]} 31. Qf8+ {[%emt 0:03:44]}
Kh7 {[%emt 0:00:01]} 32. Rxg5 {[%emt 0:02:57]} hxg5 {[%emt 0:00:08]} 33. Nxd5 {
[%emt 0:00:06]} Rxe5 {[%emt 0:00:28]} 34. dxe5 {[%emt 0:00:07]} Qxd5+ {[%emt 0:
00:00]} 35. Kc2 {[%emt 0:00:13]} Qe4+ {[%emt 0:01:21]} 36. Kd2 {[%emt 0:00:24]}
Qd4+ {[%emt 0:00:25]} 37. Kc2 {[%emt 0:00:08]} Qc4+ {[%emt 0:00:57]} 38. Kd2 {
[%emt 0:00:12]} Qd4+ {[%emt 0:00:29]} 39. Kc2 {[%emt 0:00:05]} Qc4+ {[%emt 0:
00:00]} 1/2-1/2

[Event "44th Chess Olympiad Women 2022"]
[Site "Chennai"]
[Date "2022.08.08"]
[Round "10.22"]
[White "Ayzenberg, Alena"]
[Black "Sinitsina, Anastassia"]
[Result "0-1"]
[WhiteElo "2023"]
[BlackElo "2175"]
[Annotator "NA RC"]
[PlyCount "88"]
[EventDate "2022.??.??"]
[TimeControl "60"]

1. d4 {[%emt 0:00:03]} Nf6 {[%emt 0:00:04]} 2. c4 {[%emt 0:00:26]} g6 {[%emt 0:
00:00]} 3. Nc3 {[%emt 0:00:07]} Bg7 {[%emt 0:00:04]} 4. e4 {[%emt 0:00:06]} d6
{[%emt 0:00:04]} 5. Nf3 {[%emt 0:00:07]} O-O {[%emt 0:00:06]} 6. Be2 {[%emt 0:
00:00]} e5 {[%emt 0:00:08]} 7. Be3 {[%emt 0:00:33]} exd4 {[%emt 0:00:38]} 8.
Nxd4 {[%emt 0:00:58]} Re8 {[%emt 0:00:31]} 9. f3 {[%emt 0:00:59]} c6 {[%emt 0:
00:00]} 10. Bf2 {[%emt 0:00:38]} d5 {[%emt 0:00:51]} 11. exd5 {[%emt 0:01:02]}
cxd5 {[%emt 0:00:04]} 12. O-O {[%emt 0:00:57]} Nc6 {[%emt 0:04:27]} 13. c5 {
[%emt 0:02:53]} Nh5 {[%emt 0:01:12]} 14. Qd2 {[%emt 0:03:40]} Be5 {[%emt 0:00:
00]} 15. g3 {[%emt 0:08:42]} Ng7 {[%emt 0:03:14]} 16. f4 {[%emt 0:04:45]} Bxd4
{[%emt 0:05:27]} 17. Bxd4 {[%emt 0:00:10]} Nxd4 {[%emt 0:00:16]} 18. Qxd4 {
[%emt 0:00:09]} Nf5 {[%emt 0:00:35]} 19. Qf2 {[%emt 0:11:41]} Ne3 {[%emt 0:00:
00]} 20. Bf3 {[%emt 0:11:39]} Nxf1 {[%emt 0:12:00]} 21. Rxf1 {[%emt 0:01:05]}
Be6 {[%emt 0:02:52]} 22. f5 {[%emt 0:06:06]} gxf5 {[%emt 0:07:58]} 23. Rd1 {
[%emt 0:08:07]} Qg5 {[%emt 0:03:08]} 24. Nb5 {[%emt 0:12:08]} Re7 {[%emt 0:00:
00]} 25. Qd4 {[%emt 0:06:58]} b6 {[%emt 0:06:02]} 26. b4 {[%emt 0:03:39]} bxc5
{[%emt 0:00:15]} 27. bxc5 {[%emt 0:00:44]} Rb8 {[%emt 0:06:58]} 28. Nd6 {
[%emt 0:02:32]} Rc7 {[%emt 0:07:22]} 29. Re1 {[%emt 0:01:44]} Qg7 {[%emt 0:00:
00]} 30. Qf4 {[%emt 0:00:57]} Qc3 {[%emt 0:09:31]} 31. Rc1 {[%emt 0:00:51]} Qb2
{[%emt 0:00:17]} 32. Qe3 {[%emt 0:05:05]} Rc6 {[%emt 0:01:59]} 33. Rf1 {
[%emt 0:01:09]} Qg7 {[%emt 0:01:04]} 34. Qf4 {[%emt 0:00:42]} Rf8 {[%emt 0:00:
00]} 35. Rc1 {[%emt 0:03:43]} h6 {[%emt 0:00:50]} 36. h4 {[%emt 0:00:43]} Kh8 {
[%emt 0:01:19]} 37. Kh2 {[%emt 0:00:16]} Rg8 {[%emt 0:00:31]} 38. Rc2 {[%emt 0:
00:00]} Ra6 {[%emt 0:01:11]} 39. c6 {[%emt 0:01:04]} Ra4 {[%emt 0:00:28]} 40.
Nxf7+ {[%emt 0:02:04]} Bxf7 {[%emt 0:00:24]} 41. Qd6 {[%emt 0:02:33]} Rc4 {
[%emt 0:01:36]} 42. Rg2 {[%emt 0:11:26]} Rc8 {[%emt 0:00:51]} 43. Qd7 {[%emt 0:
00:00]} R4xc6 {[%emt 0:00:16]} 44. Qxf5 {[%emt 0:00:07]} Qf6 {[%emt 0:00:50]}
0-1

[Event "44th Chess Olympiad Women 2022"]
[Site "Chennai"]
[Date "2022.08.08"]
[Round "10.22"]
[White "Blokhin, Sofia"]
[Black "Rodsmoen, Maud"]
[Result "1-0"]
[WhiteElo "1996"]
[BlackElo "1975"]
[Annotator "NA RC"]
[PlyCount "81"]
[EventDate "2022.??.??"]
[TimeControl "60"]

1. e4 {[%emt 0:00:03]} c5 {[%emt 0:00:05]} 2. Nf3 {[%emt 0:00:06]} e6 {[%emt 0:
00:00]} 3. d4 {[%emt 0:00:06]} cxd4 {[%emt 0:00:03]} 4. Nxd4 {[%emt 0:00:05]}
Nc6 {[%emt 0:00:07]} 5. Nc3 {[%emt 0:00:06]} Qc7 {[%emt 0:00:04]} 6. Be3 {
[%emt 0:00:10]} a6 {[%emt 0:00:19]} 7. g4 {[%emt 0:00:14]} Bb4 {[%emt 0:09:16]}
8. Nxc6 {[%emt 0:00:16]} Qxc6 {[%emt 0:09:17]} 9. Qd4 {[%emt 0:06:42]} Bxc3+ {
[%emt 0:04:51]} 10. bxc3 {[%emt 0:00:09]} Ne7 {[%emt 0:16:13]} 11. c4 {[%emt 0:
00:00]} O-O {[%emt 0:06:24]} 12. Bg2 {[%emt 0:08:28]} b5 {[%emt 0:07:45]} 13.
c5 {[%emt 0:03:22]} f6 {[%emt 0:12:48]} 14. Rd1 {[%emt 0:10:54]} f5 {[%emt 0:
00:00]} 15. Bg5 {[%emt 0:06:33]} Ng6 {[%emt 0:04:55]} 16. gxf5 {[%emt 0:20:17]}
exf5 {[%emt 0:05:06]} 17. Qd5+ {[%emt 0:03:27]} Qxd5 {[%emt 0:00:28]} 18. exd5
{[%emt 0:00:09]} Bb7 {[%emt 0:05:42]} 19. c6 {[%emt 0:05:40]} Rae8+ {[%emt 0:
00:00]} 20. Kf1 {[%emt 0:02:37]} Bc8 {[%emt 0:00:35]} 21. d6 {[%emt 0:01:23]}
h6 {[%emt 0:01:24]} 22. Bd5+ {[%emt 0:01:01]} Kh7 {[%emt 0:00:10]} 23. Bc1 {
[%emt 0:01:39]} Ne5 {[%emt 0:01:05]} 24. c7 {[%emt 0:00:49]} Nf7 {[%emt 0:00:
00]} 25. Ba3 {[%emt 0:02:01]} a5 {[%emt 0:01:40]} 26. Bc5 {[%emt 0:00:58]} Re5
{[%emt 0:00:39]} 27. Rg1 {[%emt 0:01:58]} g6 {[%emt 0:01:30]} 28. f4 {[%emt 0:
00:00]} Rxd5 {[%emt 0:01:27]} 29. Rxd5 {[%emt 0:00:09]} Re8 {[%emt 0:00:33]}
30. Kf2 {[%emt 0:04:10]} Bb7 {[%emt 0:00:52]} 31. Rd4 {[%emt 0:00:53]} Kg7 {
[%emt 0:00:43]} 32. Re1 {[%emt 0:00:36]} Kf8 {[%emt 0:00:31]} 33. Rxe8+ {
[%emt 0:00:30]} Kxe8 {[%emt 0:00:03]} 34. Rd1 {[%emt 0:00:36]} g5 {[%emt 0:00:
00]} 35. Rb1 {[%emt 0:01:11]} b4 {[%emt 0:00:53]} 36. a3 {[%emt 0:01:11]} gxf4
{[%emt 0:01:06]} 37. axb4 {[%emt 0:00:16]} Ng5 {[%emt 0:00:35]} 38. bxa5 {
[%emt 0:01:37]} Ne4+ {[%emt 0:00:16]} 39. Kg1 {[%emt 0:00:27]} Bc8 {[%emt 0:00:
00]} 40. Rb8 {[%emt 0:00:19]} Nxc5 {[%emt 0:00:33]} 41. Rxc8+ {[%emt 0:30:07]}
1-0

[Event "44th Chess Olympiad Women 2022"]
[Site "Chennai"]
[Date "2022.08.08"]
[Round "10.22"]
[White "Machlik, Edit"]
[Black "Narva, Mai"]
[Result "0-1"]
[WhiteElo "2084"]
[BlackElo "2385"]
[Annotator "RC"]
[PlyCount "84"]
[EventDate "2022.??.??"]
[TimeControl "60"]

1. d4 {[%emt 0:00:01]} Nf6 {[%emt 0:00:10]} 2. c4 {[%emt 0:00:14]} e6 {[%emt 0:
00:00]} 3. Nc3 {[%emt 0:00:08]} d5 {[%emt 0:00:22]} 4. cxd5 {[%emt 0:00:11]}
exd5 {[%emt 0:00:07]} 5. Bg5 {[%emt 0:00:05]} c6 {[%emt 0:00:10]} 6. e3 {
[%emt 0:00:09]} h6 {[%emt 0:00:15]} 7. Bh4 {[%emt 0:01:37]} Be7 {[%emt 0:00:16]
} 8. Qc2 {[%emt 0:00:24]} O-O {[%emt 0:00:17]} 9. Bd3 {[%emt 0:04:15]} Re8 {
[%emt 0:00:20]} 10. Nf3 {[%emt 0:01:34]} Ne4 {[%emt 0:00:51]} 11. Bxe7 {
[%emt 0:03:08]} Qxe7 {[%emt 0:00:08]} 12. O-O {[%emt 0:04:53]} Bf5 {[%emt 0:00:
00]} 13. Bxe4 {[%emt 0:06:08]} dxe4 {[%emt 0:00:21]} 14. Nd2 {[%emt 0:01:09]}
Bg6 {[%emt 0:02:52]} 15. Rab1 {[%emt 0:03:42]} a5 {[%emt 0:18:43]} 16. a3 {
[%emt 0:22:01]} b5 {[%emt 0:10:36]} 17. a4 {[%emt 0:07:29]} b4 {[%emt 0:11:10]}
18. Ne2 {[%emt 0:01:02]} Nd7 {[%emt 0:13:40]} 19. Nf4 {[%emt 0:19:09]} c5 {
[%emt 0:05:51]} 20. Nxg6 {[%emt 0:05:42]} fxg6 {[%emt 0:00:08]} 21. Rfe1 {
[%emt 0:06:00]} Rac8 {[%emt 0:05:41]} 22. Rbc1 {[%emt 0:01:02]} Kh7 {[%emt 0:
00:00]} 23. Qc4 {[%emt 0:05:02]} cxd4 {[%emt 0:05:42]} 24. Qxc8 {[%emt 0:00:30]
} Rxc8 {[%emt 0:00:07]} 25. Rxc8 {[%emt 0:00:03]} Nb6 {[%emt 0:01:13]} 26. Rc6
{[%emt 0:01:13]} Nxa4 {[%emt 0:02:40]} 27. exd4 {[%emt 0:03:07]} Qd7 {[%emt 0:
00:00]} 28. Rc2 {[%emt 0:02:28]} Qxd4 {[%emt 0:01:09]} 29. b3 {[%emt 0:01:11]}
Qd3 {[%emt 0:03:06]} 30. Ra2 {[%emt 0:00:12]} Nc3 {[%emt 0:00:36]} 31. Rb2 {
[%emt 0:00:49]} Ne2+ {[%emt 0:04:41]} 32. Kf1 {[%emt 0:00:49]} Nd4+ {[%emt 0:
00:00]} 33. Kg1 {[%emt 0:00:03]} Qc3 {[%emt 0:00:47]} 34. Reb1 {[%emt 0:01:06]}
Ne2+ {[%emt 0:02:18]} 35. Kf1 {[%emt 0:00:46]} Nf4 {[%emt 0:00:26]} 36. Kg1 {
[%emt 0:00:30]} e3 {[%emt 0:00:42]} 37. fxe3 {[%emt 0:00:09]} Qxe3+ {[%emt 0:
00:00]} 38. Kh1 {[%emt 0:00:06]} Nd3 {[%emt 0:00:57]} 39. Nc4 {[%emt 0:00:33]}
Qe4 {[%emt 0:00:35]} 40. Nd2 {[%emt 0:00:57]} Qe2 {[%emt 0:01:09]} 41. Ra2 {
[%emt 0:06:44]} Nf2+ {[%emt 0:00:35]} 42. Kg1 {[%emt 0:00:07]} Ne4 {[%emt 0:00:
00]} 0-1

[Event "44th Chess Olympiad Women 2022"]
[Site "Chennai"]
[Date "2022.08.08"]
[Round "10.22"]
[White "Olde, Margareth"]
[Black "Stanford, Sheila Barth"]
[Result "1/2-1/2"]
[WhiteElo "2235"]
[BlackElo "2097"]
[Annotator "NA RC"]
[PlyCount "76"]
[EventDate "2022.??.??"]
[TimeControl "60"]

1. d4 {[%emt 0:00:02]} Nf6 {[%emt 0:00:07]} 2. Nf3 {[%emt 0:00:11]} e6 {
[%emt 0:00:23]} 3. g3 {[%emt 0:00:19]} b5 {[%emt 0:00:19]} 4. a4 {[%emt 0:00:
00]} b4 {[%emt 0:01:53]} 5. Bg2 {[%emt 0:00:40]} Bb7 {[%emt 0:00:41]} 6. c4 {
[%emt 0:02:46]} bxc3 {[%emt 0:03:59]} 7. Nxc3 {[%emt 0:00:30]} Be7 {[%emt 0:00:
00]} 8. O-O {[%emt 0:01:40]} O-O {[%emt 0:00:42]} 9. Bf4 {[%emt 0:05:14]} Na6 {
[%emt 0:05:27]} 10. Re1 {[%emt 0:06:18]} d5 {[%emt 0:08:26]} 11. Ne5 {[%emt 0:
00:00]} c5 {[%emt 0:04:53]} 12. dxc5 {[%emt 0:13:59]} Bxc5 {[%emt 0:02:19]} 13.
Nb5 {[%emt 0:07:51]} Nb4 {[%emt 0:06:35]} 14. Nd3 {[%emt 0:07:39]} Nxd3 {
[%emt 0:02:13]} 15. exd3 {[%emt 0:01:20]} a6 {[%emt 0:04:12]} 16. d4 {[%emt 0:
00:00]} Bb4 {[%emt 0:01:31]} 17. Nc3 {[%emt 0:00:08]} a5 {[%emt 0:01:23]} 18.
Re3 {[%emt 0:03:30]} Ne8 {[%emt 0:19:05]} 19. h4 {[%emt 0:02:40]} Bd6 {[%emt 0:
00:00]} 20. Be5 {[%emt 0:04:15]} Bxe5 {[%emt 0:02:51]} 21. dxe5 {[%emt 0:01:23]
} d4 {[%emt 0:04:21]} 22. Rd3 {[%emt 0:09:52]} Bxg2 {[%emt 0:00:14]} 23. Kxg2 {
[%emt 0:00:05]} Qb8 {[%emt 0:01:19]} 24. Rxd4 {[%emt 0:00:20]} Qxe5 {[%emt 0:
00:00]} 25. Qd2 {[%emt 0:03:24]} Nf6 {[%emt 0:00:45]} 26. Rb1 {[%emt 0:04:41]}
Qc7 {[%emt 0:04:17]} 27. Qe2 {[%emt 0:01:17]} h6 {[%emt 0:06:28]} 28. Qf3 {
[%emt 0:00:51]} Rab8 {[%emt 0:02:59]} 29. b4 {[%emt 0:03:42]} e5 {[%emt 0:00:
00]} 30. Nd5 {[%emt 0:01:55]} Nxd5 {[%emt 0:00:39]} 31. Rxd5 {[%emt 0:00:04]}
axb4 {[%emt 0:00:09]} 32. Qe4 {[%emt 0:00:22]} Qc6 {[%emt 0:04:57]} 33. Rxe5 {
[%emt 0:00:04]} Qxa4 {[%emt 0:00:21]} 34. Re7 {[%emt 0:00:04]} Qa3 {[%emt 0:00:
00]} 35. Rb7 {[%emt 0:00:36]} b3 {[%emt 0:00:51]} 36. Qf3 {[%emt 0:00:08]} Rxb7
{[%emt 0:01:22]} 37. Qxb7 {[%emt 0:00:04]} h5 {[%emt 0:01:49]} 38. Rxb3 {
[%emt 0:00:24]} Qa8 {[%emt 0:00:14]} 1/2-1/2

[Event "44th Chess Olympiad Women 2022"]
[Site "Chennai"]
[Date "2022.08.08"]
[Round "10.23"]
[White "Argote Heredia, Valentina"]
[Black "Phan, Nguyen Mai Chi"]
[Result "1-0"]
[WhiteElo "2205"]
[BlackElo "2139"]
[Annotator "RC"]
[PlyCount "101"]
[EventDate "2022.??.??"]
[TimeControl "60"]

1. e4 {[%emt 0:00:02]} c5 {[%emt 0:00:10]} 2. Nf3 {[%emt 0:00:05]} d6 {[%emt 0:
00:00]} 3. d4 {[%emt 0:00:05]} cxd4 {[%emt 0:00:17]} 4. Nxd4 {[%emt 0:00:05]}
Nf6 {[%emt 0:00:07]} 5. Nc3 {[%emt 0:00:03]} a6 {[%emt 0:00:31]} 6. f3 {
[%emt 0:00:09]} e5 {[%emt 0:01:22]} 7. Nb3 {[%emt 0:00:06]} Be7 {[%emt 0:00:44]
} 8. Be3 {[%emt 0:00:11]} Be6 {[%emt 0:01:48]} 9. Qd2 {[%emt 0:00:05]} Nbd7 {
[%emt 0:01:08]} 10. g4 {[%emt 0:00:06]} b5 {[%emt 0:01:44]} 11. a4 {[%emt 0:00:
00]} b4 {[%emt 0:03:09]} 12. Nd5 {[%emt 0:00:05]} Bxd5 {[%emt 0:07:57]} 13.
exd5 {[%emt 0:00:07]} O-O {[%emt 0:03:47]} 14. O-O-O {[%emt 0:03:30]} Nb6 {
[%emt 0:07:16]} 15. Bxb6 {[%emt 0:00:46]} Qxb6 {[%emt 0:00:06]} 16. h4 {
[%emt 0:00:09]} Rfc8 {[%emt 0:02:25]} 17. Kb1 {[%emt 0:01:51]} Nd7 {[%emt 0:00:
00]} 18. g5 {[%emt 0:08:33]} Nc5 {[%emt 0:08:38]} 19. Nxc5 {[%emt 0:04:58]}
Rxc5 {[%emt 0:00:54]} 20. b3 {[%emt 0:01:48]} a5 {[%emt 0:15:17]} 21. Bd3 {
[%emt 0:06:09]} Rf8 {[%emt 0:11:26]} 22. Bf5 {[%emt 0:03:36]} Rc3 {[%emt 0:00:
00]} 23. Qg2 {[%emt 0:15:40]} Qe3 {[%emt 0:01:52]} 24. Bd3 {[%emt 0:03:36]} Qf4
{[%emt 0:02:09]} 25. Qh3 {[%emt 0:13:50]} Rc7 {[%emt 0:04:46]} 26. Bf5 {
[%emt 0:03:44]} g6 {[%emt 0:02:17]} 27. Be4 {[%emt 0:00:08]} h5 {[%emt 0:03:44]
} 28. Rhe1 {[%emt 0:05:58]} Bd8 {[%emt 0:02:56]} 29. Bd3 {[%emt 0:00:20]} Rc3 {
[%emt 0:00:51]} 30. Qd7 {[%emt 0:04:55]} Qxh4 {[%emt 0:01:08]} 31. Qxd6 {
[%emt 0:03:15]} Rxd3 {[%emt 0:01:22]} 32. cxd3 {[%emt 0:00:05]} Bxg5 {[%emt 0:
00:00]} 33. Qc6 {[%emt 0:08:33]} Bf6 {[%emt 0:01:11]} 34. d6 {[%emt 0:04:38]}
Kg7 {[%emt 0:00:57]} 35. Qe4 {[%emt 0:04:34]} Qf2 {[%emt 0:00:59]} 36. Rc1 {
[%emt 0:01:43]} Qb6 {[%emt 0:01:04]} 37. Rc6 {[%emt 0:00:18]} Qf2 {[%emt 0:00:
00]} 38. d7 {[%emt 0:00:36]} Qh4 {[%emt 0:00:38]} 39. Qxh4 {[%emt 0:02:09]}
Bxh4 {[%emt 0:00:03]} 40. Rc8 {[%emt 0:01:35]} Bf6 {[%emt 0:01:03]} 41. Rxe5 {
[%emt 0:30:43]} Rd8 {[%emt 0:17:05]} 42. Rxd8 {[%emt 0:00:00]} Bxd8 {[%emt 0:
00:00]} 43. Re8 {[%emt 0:00:00]} Bf6 {[%emt 0:00:14]} 44. d8=Q {[%emt 0:00:00]}
Bxd8 {[%emt 0:00:03]} 45. Rxd8 {[%emt 0:00:00]} g5 {[%emt 0:00:03]} 46. Kc1 {
[%emt 0:00:00]} h4 {[%emt 0:00:21]} 47. Kd2 {[%emt 0:00:00]} h3 {[%emt 0:00:25]
} 48. Re8 {[%emt 0:00:00]} f5 {[%emt 0:00:26]} 49. d4 {[%emt 0:00:00]} g4 {
[%emt 0:08:29]} 50. fxg4 {[%emt 0:00:00]} fxg4 {[%emt 0:00:02]} 51. Re4 {
[%emt 0:00:00]} 1-0